bitfinex-derivatives/quotes_ETHF0:USTF0_20210406
["timestamp","ask_amount","ask_price","bid_price","bid_amount"]
[1617683824620,14.5804,2117.4,2117.2,3.76]
[1617683825021,14.5804,2117.4,2117.2,8.73433429]
[1617683825324,14.5804,2117.4,2117.2,3.76]
[1617683825522,14.5804,2117.4,2117.1,4.97571173]
[1617683825722,14.5804,2117.4,2117.3,5.93]
[1617683825924,14.5804,2117.4,2117.2,5.86]
[1617683826351,2.0,2117.3,2117.2,5.86]
[1617683826531,2.0,2117.3,2117.0,5.76]
[1617683827024,2.0,2117.3,2117.2,5.83]
[1617683827225,59.8715,2117.2,2117.1,5.25]
[1617683827427,59.8715,2117.2,2116.8,4.98277224]
[1617683827625,59.8715,2117.2,2116.9,5.87]
[1617683827827,59.8715,2117.2,2117.1,0.01]
[1617683828126,59.8715,2117.2,2117.0,5.79]
[1617683828327,59.8715,2117.2,2117.1,4.27]
[1617683828527,2.0,2117.3,2117.1,4.27]
[1617683828726,2.0,2117.3,2116.8,5.73249758]
[1617683828926,44.5804,2117.4,2117.2,5.14]
[1617683828927,14.5804,2117.4,2117.2,5.14]
[1617683829225,14.5804,2117.4,2116.8,4.98249758]
[1617683829226,12.0,2117.4,2116.8,4.98249758]
[1617683829627,12.0,2117.4,2117.3,5.76]
[1617683829827,12.0,2117.4,2116.9,7.98123748]
[1617683830027,2.90695,2117.1,2116.9,4.98123748]
[1617683830227,2.90695,2117.1,2117.0,5.89]
[1617683831227,2.90695,2117.1,2117.0,10.87204532]
[1617683831628,2.90695,2117.1,2117.0,4.98204532]
[1617683831929,2.90695,2117.1,2117.0,10.65204532]
[1617683832729,2.90695,2117.1,2117.0,5.67]
[1617683833132,2.90695,2117.1,2117.0,4.98527473]
[1617683833431,2.90695,2117.1,2117.0,5.78]
[1617683833833,2.90695,2117.1,2117.0,4.9863322]
[1617683834133,2.90695,2117.1,2117.0,5.73]
[1617683835937,2.90695,2117.1,2117.0,10.71746716]
[1617683836436,2.90695,2117.1,2117.0,4.98746716]
[1617683836737,2.90695,2117.1,2117.0,10.92746716]
[1617683838739,5.35825,2117.1,2117.0,10.92746716]
[1617683839742,2.90695,2117.1,2117.0,10.92746716]
[1617683841946,2.90695,2117.1,2117.0,5.94]
[1617683842444,2.90695,2117.1,2116.9,6.09576658]
[1617683842644,2.90695,2117.1,2117.0,5.67]
[1617683843648,2.90695,2117.1,2117.0,11.76609473]
[1617683844047,2.90695,2117.1,2117.0,6.09609473]
[1617683844448,2.90695,2117.1,2117.0,11.85609473]
[1617683845452,2.90695,2117.1,2117.0,5.76]
[1617683845853,2.90695,2117.1,2116.9,6.09673124]
[1617683846155,2.90695,2117.1,2117.0,5.76]
[1617683851260,2.90695,2117.1,2117.0,11.85464332]
[1617683851859,2.90695,2117.1,2117.0,6.09464332]
[1617683852057,2.90695,2117.1,2117.0,11.96464332]
[1617683856669,2.90695,2117.1,2117.0,5.87]
[1617683857068,2.90695,2117.1,2116.9,6.09568306]
[1617683857472,2.90695,2117.1,2117.0,5.92]
[1617683858678,2.90695,2117.1,2116.9,5.8]
[1617683858879,2.90695,2117.1,2117.0,5.84]
[1617683859376,2.90695,2117.1,2116.9,11.88794555]
[1617683859575,2.90695,2117.1,2117.0,5.75]
[1617683861379,2.90695,2117.1,2116.7,3.54]
[1617683861684,2.90695,2117.1,2117.0,11.48083295]
[1617683862081,2.90695,2117.1,2116.7,13.14811779]
[1617683862281,2.90695,2117.1,2117.0,5.81]
[1617683862282,83.96525,2117.1,2117.0,5.81]
[1617683862483,81.0583,2117.1,2117.0,11.91157696]
[1617683862682,81.0583,2117.1,2117.0,6.10157696]
[1617683862885,81.0583,2117.1,2117.0,11.79157696]
[1617683864287,2.90695,2117.1,2117.0,11.79157696]
[1617683868593,2.90695,2117.1,2117.0,5.69]
[1617683868991,2.90695,2117.1,2116.9,6.10090298]
[1617683869394,2.90695,2117.1,2117.0,5.69]
[1617683871398,2.90695,2117.1,2117.0,11.79102301]
[1617683871696,2.90695,2117.1,2117.0,5.69]
[1617683871999,2.90695,2117.1,2116.9,6.10002994]
[1617683872196,2.90695,2117.1,2117.0,5.82]
[1617683872396,2.90695,2117.1,2116.9,6.10002994]
[1617683872696,2.90695,2117.1,2117.0,5.85]
[1617683873700,2.90695,2117.1,2117.0,10.84347665]
[1617683873900,2.90695,2117.1,2117.0,4.99347665]
[1617683874100,2.90695,2117.1,2117.0,10.38347665]
[1617683874101,4.90695,2117.1,2117.0,10.38347665]
[1617683874700,4.90695,2117.1,2117.0,5.39]
[1617683875101,4.90695,2117.1,2116.9,5.87]
[1617683875301,61.33435,2117.1,2116.9,5.87]
[1617683878904,34.90695,2117.1,2116.7,10.65279197]
[1617683879105,34.90695,2117.1,2116.8,0.41]
[1617683879806,68.1787,2116.8,2116.7,0.01]
[1617683880005,103.3496,2116.8,2116.7,0.01]
[1617683880208,103.3496,2116.8,2116.4,4.99899081]
[1617683880506,103.3496,2116.8,2115.3,8.33165134]
[1617683880507,103.3496,2116.8,2116.7,5.81]
[1617683880705,103.3496,2116.8,2116.5,5.78]
[1617683880906,103.3496,2116.8,2116.4,5.14879755]
[1617683881105,103.3496,2116.8,2116.7,5.61]
[1617683881305,103.3496,2116.8,2116.6,5.81]
[1617683881505,103.3496,2116.8,2116.5,5.91]
[1617683881705,103.3496,2116.8,2116.7,5.93]
[1617683881905,103.3496,2116.8,2116.4,4.99879755]
[1617683882108,103.3496,2116.8,2116.5,5.89]
[1617683882309,103.3496,2116.8,2116.7,5.85]
[1617683882507,106.25655,2116.8,2116.4,4.99879755]
[1617683882707,106.25655,2116.8,2116.5,5.72]
[1617683882907,37.14395,2116.8,2116.7,5.7]
[1617683883108,37.14395,2116.8,2116.4,4.99879755]
[1617683883109,2.90695,2116.8,2116.4,4.99879755]
[1617683883410,4.90695,2116.8,2116.7,5.72]
[1617683883609,2.90695,2116.8,2116.7,5.72]
[1617683883807,2.90695,2116.8,2116.6,4.99664236]
[1617683884107,3.84745,2116.8,2116.7,5.81]
[1617683884307,3.84745,2116.8,2116.6,4.99664236]
[1617683884707,3.84745,2116.8,2116.7,5.71]
[1617683885808,6.67385,2116.8,2116.6,0.49]
[1617683886008,8.67385,2116.8,2116.7,5.21]
[1617683886209,2.0,2116.6,2116.4,4.99816798]
[1617683886409,26.79,2116.6,2116.5,5.7]
[1617683886810,26.79,2116.6,2116.4,0.12]
[1617683887010,26.79,2116.6,2116.5,5.73]
[1617683887209,26.79,2116.6,2116.0,0.15]
[1617683887511,26.79,2116.6,2116.5,5.86]
[1617683888008,26.79,2116.6,2115.6,12.06528455]
[1617683888009,26.79,2116.6,2115.6,6.11528455]
[1617683888209,26.79,2116.6,2116.5,5.78]
[1617683888411,26.79,2116.6,2115.7,5.73]
[1617683889813,26.79,2116.6,2115.7,11.84510098]
[1617683890212,26.79,2116.6,2115.7,6.11510098]
[1617683890712,3.84745,2115.8,2115.7,6.11510098]
[1617683890913,2.90695,2115.8,2115.7,6.11510098]
[1617683891113,2.90695,2115.8,2115.7,12.01510098]
[1617683891314,2.90695,2115.8,2115.7,5.9]
[1617683891816,2.90695,2115.8,2115.4,13.09671768]
[1617683892114,2.90695,2115.8,2115.7,6.09150638]
[1617683892413,2.90695,2115.8,2115.7,0.22150638]
[1617683892614,2.90695,2115.8,2115.7,5.95150638]
[1617683892818,2.90695,2115.8,2115.7,5.73]
[1617683893120,2.90695,2115.8,2115.7,5.9516138]
[1617683893323,2.90695,2115.8,2115.7,0.2216138]
[1617683893521,2.90695,2115.8,2115.7,5.9416138]
[1617683896127,2.90695,2115.8,2115.7,2.7709]
[1617683898526,63.02085,2115.8,2115.7,7.75555166]
[1617683899328,63.02085,2115.8,2115.7,2.7709]
[1617683900832,2.90695,2115.8,2115.7,2.7709]
[1617683902235,5.57735,2115.8,2115.7,2.7709]
[1617683917551,75.75835,2115.8,2115.7,2.7709]
[1617683921058,5.57735,2115.8,2115.7,2.7709]
[1617683921256,2.90695,2115.8,2115.7,2.7709]
[1617683926763,5.06625,2115.8,2115.7,2.7709]
[1617683926963,7.06625,2115.8,2115.7,2.7709]
[1617683927862,76.28405,2115.8,2115.7,2.7709]
[1617683929165,76.27405,2115.8,2115.7,2.7709]
[1617683929565,106.27405,2115.8,2115.7,2.7709]
[1617683930667,37.05625,2115.8,2115.7,2.7709]
[1617683932168,35.05625,2115.8,2115.7,2.7709]
[1617683932791,5.05625,2115.8,2115.7,2.7709]
[1617683932969,2.89695,2115.8,2115.7,2.7709]
[1617683934170,2.89695,2115.8,2115.7,5.4875]
[1617683935372,2.89695,2115.8,2115.7,2.7709]
[1617683938902,32.89695,2115.8,2115.7,2.7709]
[1617683939174,34.76175,2115.8,2115.7,2.7709]
[1617683941680,32.89695,2115.8,2115.7,2.7709]
[1617683941880,2.89695,2115.8,2115.7,2.7709]
[1617683966011,2.89695,2115.8,2115.7,7.77170883]
[1617683967208,2.89695,2115.8,2115.7,2.7709]
[1617683970713,2.89695,2115.8,2115.7,7.77271173]
[1617683972317,2.89695,2115.8,2115.7,2.7709]
[1617683981130,2.89695,2115.8,2115.7,5.2215]
[1617683985736,2.89695,2115.8,2115.7,2.7709]
[1617683991643,5.58345,2115.8,2115.7,2.7709]
[1617683996751,5.58345,2115.8,2115.7,1.292]
[1617684001483,5.58345,2115.8,2115.7,0.5914]
[1617684001698,35.58345,2115.8,2115.7,0.5914]
[1617684001916,37.58345,2115.8,2115.7,0.5914]
[1617684002463,37.58345,2115.8,2114.7,5.00876983]
[1617684002663,37.58345,2115.8,2114.6,5.00921396]
[1617684002863,58.8648,2114.7,2114.6,5.00921396]
[1617684003163,62.4312,2114.7,2114.6,3.64]
[1617684003362,2.90695,2114.6,2114.5,5.00931972]
[1617684003563,2.90695,2114.6,2114.4,5.00935024]
[1617684003764,2.90695,2114.6,2114.5,5.78]
[1617684003963,2.90695,2114.6,2113.8,8.33568404]
[1617684003964,2.90695,2114.6,2114.3,2.68]
[1617684004162,2.90695,2114.6,2114.0,4.99570838]
[1617684004363,2.90695,2114.6,2114.5,5.73]
[1617684004663,2.90695,2114.6,2114.1,5.9]
[1617684004867,2.90695,2114.6,2113.9,4.99593267]
[1617684005064,24.31,2114.5,2114.1,5.0433]
[1617684005363,2.90695,2114.0,2113.9,5.68]
[1617684005663,2.90695,2114.0,2113.8,6.09627413]
[1617684005664,5.63815,2114.0,2113.8,1.1]
[1617684006062,5.63815,2114.0,2113.9,5.88]
[1617684007163,7.63815,2114.0,2113.9,5.88]
[1617684007665,59.6469,2113.9,2113.7,5.89]
[1617684007863,59.6469,2113.9,2113.4,4.99684364]
[1617684008063,59.6469,2113.9,2113.2,6.10725334]
[1617684008064,59.6469,2113.9,2113.3,4.99713655]
[1617684008263,59.6469,2113.9,2113.8,5.93]
[1617684008463,59.6469,2113.9,2113.3,7.89713655]
[1617684008764,59.6469,2113.9,2113.8,0.04]
[1617684009064,59.6469,2113.9,2113.3,3.41]
[1617684009463,59.6469,2113.9,2113.8,0.2]
[1617684009663,83.9569,2113.9,2113.3,5.79]
[1617684009963,83.9569,2113.9,2113.8,5.72]
[1617684010364,83.9569,2113.9,2113.3,5.85]
[1617684010663,83.9569,2113.9,2113.8,5.4]
[1617684011064,83.9569,2113.9,2113.4,5.45]
[1617684011264,83.9569,2113.9,2113.8,5.9]
[1617684011577,71.2257,2113.8,2113.5,4.59]
[1617684011765,26.31,2113.7,2113.4,5.92]
[1617684011965,26.31,2113.7,2113.2,3.87]
[1617684012366,26.31,2113.7,2113.5,5.9]
[1617684012566,26.31,2113.7,2112.8,4.99658012]
[1617684012567,26.31,2113.7,2112.9,3.33]
[1617684012868,27.2664,2113.7,2113.6,0.11]
[1617684013267,69.7271,2113.6,2113.2,5.77]
[1617684013482,2.90695,2113.3,2113.2,5.77]
[1617684013666,29.21695,2113.3,2111.5,3.09]
[1617684013866,29.21695,2113.3,2113.1,5.87]
[1617684014066,29.21695,2113.3,2113.2,5.66]
[1617684014267,29.21695,2113.3,2111.6,3.46]
[1617684014467,29.21695,2113.3,2113.1,5.89]
[1617684014668,29.21695,2113.3,2113.2,5.84]
[1617684014968,29.21695,2113.3,2111.7,3.6]
[1617684015168,29.21695,2113.3,2113.2,5.74]
[1617684015568,29.21695,2113.3,2111.8,3.79]
[1617684015768,29.21695,2113.3,2113.2,5.46]
[1617684016171,29.21695,2113.3,2111.9,5.87]
[1617684016469,29.21695,2113.3,2113.2,5.89]
[1617684016670,29.21695,2113.3,2112.0,5.72]
[1617684016971,29.21695,2113.3,2113.2,5.82]
[1617684017376,29.21695,2113.3,2112.1,5.88]
[1617684017575,5.65025,2112.2,2112.0,4.46]
[1617684017877,69.7882,2111.7,2111.6,0.02]
[1617684018075,71.5315,2111.7,2111.6,0.02]
[1617684018276,71.5315,2111.7,2111.6,5.93]
[1617684018875,71.5315,2111.7,2111.6,5.91]
[1617684019375,71.5315,2111.7,2111.3,5.91]
[1617684019576,2.90695,2111.4,2111.2,1.1]
[1617684019979,2.90695,2111.4,2111.3,5.76]
[1617684026287,2.90695,2111.4,2111.3,6.86]
[1617684026788,2.90695,2111.4,2111.3,1.1]
[1617684026988,2.90695,2111.4,2111.3,6.86]
[1617684027288,2.90695,2111.4,2111.3,8.86]
[1617684035796,2.90695,2111.4,2111.3,11.76695]
[1617684038404,2.90695,2111.4,2111.3,8.86]
[1617684055127,2.90695,2111.4,2111.3,6.86]
[1617684057934,2.90695,2111.4,2111.3,5.76]
[1617684058333,2.90695,2111.4,2111.1,5.69]
[1617684058734,2.90695,2111.4,2111.3,5.87]
[1617684058934,2.90695,2111.4,2111.1,5.87]
[1617684059335,2.90695,2111.4,2111.3,5.87]
[1617684059535,2.90695,2111.4,2111.1,5.94]
[1617684059736,2.90695,2111.4,2111.1,7.04]
[1617684059937,2.90695,2111.4,2111.3,8.80695]
[1617684060236,2.90695,2111.4,2111.3,2.90695]
[1617684060439,2.90695,2111.4,2111.3,8.87695]
[1617684060638,75.0791,2113.5,2111.3,11.97695]
[1617684060846,2.0,2114.1,2111.3,11.97695]
[1617684061542,2.0,2114.1,2111.4,13.5971]
[1617684061743,2.0,2114.1,2111.5,3.1]
[1617684061940,30.0,2114.2,2112.3,7.65635]
[1617684062142,75.0632,2114.7,2112.3,8.75635]
[1617684062442,105.0632,2114.7,2112.4,5.68]
[1617684062644,105.0632,2114.7,2112.5,1.1]
[1617684062842,2.0,2114.6,2112.5,1.1]
[1617684063044,2.0,2114.6,2112.6,5.75]
[1617684063944,2.0,2114.6,2112.8,4.67755]
[1617684064443,2.0,2114.6,2112.9,5.82]
[1617684065945,2.90695,2113.0,2112.9,5.82]
[1617684066446,2.90695,2113.0,2112.9,6.04309919]
[1617684067046,2.90695,2113.0,2112.9,7.14309919]
[1617684067247,2.90695,2113.0,2112.9,9.14309919]
[1617684072376,0.9563,2115.0,2112.9,9.14309919]
[1617684072552,74.8006,2115.3,2112.9,39.14309919]
[1617684072754,2.0,2115.7,2112.9,39.14309919]
[1617684073051,0.9574,2115.8,2113.0,12.6062]
[1617684073252,0.9574,2115.8,2113.1,33.1]
[1617684073454,0.9574,2115.8,2113.1,38.87]
[1617684073656,2.0,2116.4,2113.1,38.87]
[1617684073916,2.0,2116.4,2113.8,2.90695]
[1617684074102,2.0,2116.4,2113.8,7.28875]
[1617684074355,2.0,2116.4,2113.9,5.74]
[1617684075455,2.0,2116.4,2114.0,12.9726]
[1617684075956,2.0,2116.4,2114.1,5.73]
[1617684078061,2.90695,2114.2,2114.1,5.73]
[1617684078560,5e-05,2114.2,2113.9,5.77]
[1617684078761,2.0,2116.4,2114.1,5.96]
[1617684078961,0.9589,2117.0,2114.1,5.96]
[1617684079162,0.9589,2117.0,2114.0,6.8]
[1617684079461,0.9589,2117.0,2114.2,2.0]
[1617684079963,0.9589,2117.0,2114.9,2.90695]
[1617684080162,0.9589,2117.0,2114.9,5.24745]
[1617684080363,0.9589,2117.0,2115.0,5.73]
[1617684081563,71.4064,2117.2,2115.0,5.73]
[1617684082065,2.90695,2115.1,2115.0,5.73]
[1617684086972,0.9416,2116.9,2115.0,5.73]
[1617684087473,2.0,2117.2,2115.0,5.73]
[1617684087672,2.0,2117.3,2115.0,6.83]
[1617684087873,2.0,2117.3,2115.1,2.0]
[1617684088073,2.0,2117.3,2116.0,4.80925]
[1617684088474,2.0,2117.3,2116.1,5.81]
[1617684088676,58.6041,2117.0,2116.1,5.81]
[1617684090180,2.90695,2116.2,2116.1,5.81]
[1617684092080,2.90695,2116.2,2115.0,5.72]
[1617684092281,72.8688,2116.1,2115.0,5.72]
[1617684092480,72.8688,2116.1,2114.2,2.0]
[1617684092682,72.8688,2116.1,2115.1,5.91]
[1617684093081,72.8688,2116.1,2113.4,16.0935]
[1617684093281,72.8688,2116.1,2115.2,5.76]
[1617684093682,72.8688,2116.1,2114.3,5.95]
[1617684093882,72.8688,2116.1,2115.3,5.94]
[1617684094182,2.90695,2115.4,2114.6,2.90695]
[1617684094683,2.90695,2115.4,2114.6,9.52115]
[1617684094882,2.90695,2115.4,2114.6,2.90695]
[1617684095083,2.90695,2115.4,2114.7,5.8]
[1617684096082,2.90695,2114.8,2114.7,5.8]
[1617684101290,2.6614,2115.5,2114.7,5.8]
[1617684101685,2.6614,2115.5,2113.7,5.84]
[1617684101985,2.6614,2115.5,2114.8,5.76]
[1617684101986,63.1502,2115.3,2114.8,5.76]
[1617684102187,2.90695,2114.9,2114.8,5.76]
[1617684102387,5.55815,2114.9,2113.7,8.62695]
[1617684102588,6.50505,2114.9,2114.8,2.98]
[1617684102989,5.55815,2114.9,2113.7,2.90695]
[1617684103191,5.55815,2114.9,2114.8,5.86]
[1617684103588,5.55815,2114.9,2113.8,5.83]
[1617684103789,5.55815,2114.9,2114.8,5.91]
[1617684104088,5.55815,2114.9,2113.7,2.90695]
[1617684104089,5.55815,2114.9,2113.8,5.69]
[1617684104488,5.55815,2114.9,2114.8,5.91]
[1617684104689,5.55815,2114.9,2113.8,5.81]
[1617684105090,5.55815,2114.9,2114.2,5.69]
[1617684105391,5.55815,2114.9,2113.8,5.79]
[1617684105693,5.55815,2114.9,2114.3,5.94]
[1617684105891,5.55815,2114.9,2113.8,5.74]
[1617684106090,2.90695,2113.9,2113.8,5.74]
[1617684106291,2.90695,2113.9,2113.7,2.90695]
[1617684106491,2.90695,2113.9,2113.8,5.78]
[1617684110623,2.90695,2113.9,2113.2,5.69]
[1617684110809,5.26795,2113.9,2113.2,5.69]
[1617684111102,5.26795,2113.9,2113.8,5.74]
[1617684111314,5.26795,2113.9,2113.2,5.92]
[1617684111511,5.26795,2113.9,2113.8,5.95]
[1617684111906,5.26795,2113.9,2113.2,5.68]
[1617684112103,5.26795,2113.9,2113.8,5.84]
[1617684112402,2.7082,2114.4,2113.4,2.90695]
[1617684112802,2.7082,2114.4,2113.5,5.77]
[1617684113303,63.6022,2114.8,2113.5,5.77]
[1617684114303,2.90695,2113.6,2113.5,5.77]
[1617684116907,5.18925,2113.6,2113.5,5.77]
[1617684117108,6.12495,2113.6,2113.5,5.77]
[1617684117308,5.18925,2113.6,2112.3,5.94]
[1617684117709,5.18925,2113.6,2113.5,5.8]
[1617684117910,5.18925,2113.6,2112.4,5.95]
[1617684118312,2.2823,2113.6,2113.5,5.9]
[1617684118510,2.2823,2113.6,2113.2,2.90695]
[1617684118711,2.2823,2113.6,2113.3,5.77]
[1617684120413,2.90695,2113.4,2113.3,5.77]
[1617684120910,3.83915,2113.4,2113.3,5.77]
[1617684121111,2.90695,2113.4,2113.3,5.77]
[1617684125622,4.66625,2113.4,2113.3,5.77]
[1617684128220,5.61225,2113.4,2113.3,5.77]
[1617684128721,4.66625,2113.4,2113.3,5.77]
[1617684130122,1.7593,2113.4,2113.3,5.77]
[1617684130322,4.66625,2113.4,2113.3,5.77]
[1617684138432,4.66625,2113.4,2112.8,2.90695]
[1617684138632,4.66625,2113.4,2113.3,5.95]
[1617684138832,4.66625,2113.4,2112.9,5.76]
[1617684139133,4.66625,2113.4,2113.3,5.85]
[1617684139534,4.66625,2113.4,2112.9,5.74]
[1617684139832,4.66625,2113.4,2113.3,5.69]
[1617684140032,4.66625,2113.4,2112.9,5.74]
[1617684140335,2.90695,2113.4,2113.3,8.86695]
[1617684140732,2.90695,2113.4,2113.3,2.90695]
[1617684140932,2.90695,2113.4,2113.3,8.69695]
[1617684145841,5.32785,2113.4,2113.3,8.69695]
[1617684148242,7.32785,2113.4,2113.3,8.69695]
[1617684148944,70.09925,2113.4,2113.3,8.69695]
[1617684150045,7.32785,2113.4,2113.3,5.79]
[1617684150446,7.32785,2113.4,2112.5,6.08818103]
[1617684150447,59.6241,2113.3,2112.8,5.81]
[1617684150847,59.6241,2113.3,2112.4,1.1]
[1617684150848,59.6241,2113.3,2112.6,5.94]
[1617684151046,59.6241,2113.3,2112.9,5.83]
[1617684151446,61.6241,2113.3,2112.5,5.83]
[1617684151648,61.6241,2113.3,2113.0,5.72]
[1617684152055,61.6241,2113.3,2112.5,5.75]
[1617684152256,61.6241,2113.3,2113.1,5.87]
[1617684152454,61.6241,2113.3,2112.5,5.95]
[1617684152854,61.6241,2113.3,2113.2,5.94]
[1617684153055,61.6241,2113.3,2112.4,1.1]
[1617684153056,2.0,2113.3,2112.4,1.1]
[1617684153256,2.0,2113.3,2112.5,5.95]
[1617684154556,2.0,2113.6,2112.6,2.90695]
[1617684154758,2.0,2113.2,2112.6,2.90695]
[1617684154959,2.0,2113.2,2112.7,5.75]
[1617684156259,2.0,2113.2,2112.3,5.73]
[1617684156463,4.6309,2113.2,2112.4,1.1]
[1617684156762,4.6309,2113.2,2112.8,5.73]
[1617684156960,4.6309,2113.2,2112.5,3.09]
[1617684157163,4.6309,2113.2,2112.9,5.87]
[1617684157564,4.6309,2113.2,2112.5,5.94]
[1617684157863,4.6309,2113.2,2113.0,5.77]
[1617684158063,4.6309,2113.2,2112.4,1.1]
[1617684158263,4.6309,2113.2,2112.5,5.79]
[1617684158465,2.90695,2112.6,2112.5,5.79]
[1617684159966,2.90695,2112.6,2112.2,1.1]
[1617684159967,2.90695,2112.6,2112.3,5.92]
[1617684160165,2.90695,2112.6,2112.4,1.1]
[1617684160366,2.90695,2112.6,2112.5,5.76]
[1617684160666,2.90695,2112.6,2112.4,1.1]
[1617684160868,2.90695,2112.6,2112.5,5.8]
[1617684162470,2.90695,2112.6,2112.5,8.70695]
[1617684168977,2.90695,2112.6,2112.5,8.92930756]
[1617684170177,2.90695,2112.6,2112.5,5.8]
[1617684170675,2.90695,2112.6,2112.4,8.60695]
[1617684170875,2.90695,2112.6,2112.5,5.71]
[1617684171174,2.90695,2112.6,2112.4,2.90695]
[1617684171576,2.90695,2112.6,2112.5,5.92]
[1617684175584,2.90695,2112.6,2112.3,5.8]
[1617684175884,2.90695,2112.6,2112.5,5.88]
[1617684176384,2.90695,2112.6,2112.5,0.22272034]
[1617684176585,2.90695,2112.6,2112.5,5.97272034]
[1617684178588,2.90695,2112.6,2112.5,5.75]
[1617684179290,2.90695,2112.6,2112.3,5.95]
[1617684179291,5.44725,2112.6,2112.3,5.95]
[1617684179489,5.44725,2112.6,2112.5,5.87]
[1617684179991,5.44725,2112.6,2112.3,5.68]
[1617684180190,5.44725,2112.6,2112.5,5.76]
[1617684180392,69.6898,2112.5,2112.3,5.73]
[1617684180790,69.6898,2112.5,2112.2,1.1]
[1617684180992,69.6898,2112.5,2112.4,5.86]
[1617684181424,69.6898,2112.5,2112.3,5.86]
[1617684181599,69.6898,2112.5,2112.4,5.84]
[1617684181892,69.6898,2112.5,2111.5,6.08732901]
[1617684181893,69.6898,2112.5,2112.3,5.87]
[1617684182395,69.6898,2112.5,2112.4,5.73]
[1617684182598,2.90695,2112.0,2111.9,1.1]
[1617684182793,4.67765,2112.0,2111.9,1.1]
[1617684182994,4.67765,2112.0,2111.9,7.28311148]
[1617684184995,4.67765,2112.0,2111.9,13.38280581]
[1617684186097,2.90695,2112.0,2111.9,13.38280581]
[1617684186500,2.90695,2112.0,2111.9,7.28311148]
[1617684187998,2.90695,2112.0,2111.9,10.01891148]
[1617684188201,2.90695,2112.0,2111.9,17.22640378]
[1617684188701,2.90695,2112.0,2111.9,17.0032923]
[1617684189000,2.90695,2112.0,2111.9,17.22629102]
[1617684190201,78.0843,2112.9,2111.9,17.22629102]
[1617684190406,30.0,2114.1,2111.9,10.01879872]
[1617684190601,74.3139,2114.1,2112.0,0.22294673]
[1617684190804,74.3139,2114.1,2112.9,2.90695]
[1617684191202,74.3139,2114.1,2113.0,5.68]
[1617684193005,74.3139,2114.1,2113.2,5.13545]
[1617684193505,76.3139,2114.1,2113.3,5.73]
[1617684194905,2.90695,2113.4,2113.3,5.73]
[1617684196712,2.90695,2113.4,2113.2,5.72]
[1617684197013,72.9547,2113.3,2112.9,4.99569791]
[1617684197311,72.9547,2113.3,2112.8,4.99586989]
[1617684197512,72.9547,2113.3,2113.2,5.76]
[1617684197817,72.9547,2113.3,2112.8,4.99586989]
[1617684197818,72.9547,2113.3,2112.8,10.92586989]
[1617684198013,72.9547,2113.3,2113.2,5.75]
[1617684198515,65.4103,2113.3,2112.8,4.99586989]
[1617684198713,65.4103,2113.3,2113.2,5.83]
[1617684198916,65.4103,2113.3,2112.9,10.6858749]
[1617684199414,65.4103,2113.3,2112.9,4.9958749]
[1617684199616,65.4103,2113.3,2113.0,5.77]
[1617684200115,65.4103,2113.3,2112.9,5.93]
[1617684200315,65.4103,2113.3,2113.1,5.93]
[1617684200715,65.4103,2113.3,2112.9,5.85]
[1617684201016,2.90695,2113.0,2112.8,4.99590542]
[1617684201415,2.90695,2113.0,2112.9,5.83]
[1617684202215,2.90695,2113.0,2112.9,10.8257518]
[1617684202616,2.90695,2113.0,2112.9,4.9957518]
[1617684202921,2.90695,2113.0,2112.9,10.9057518]
[1617684204737,2.90695,2113.0,2112.9,5.91]
[1617684205126,2.90695,2113.0,2112.8,5.89]
[1617684205521,2.90695,2113.0,2112.9,5.92]
[1617684205721,2.90695,2113.0,2112.7,0.27]
[1617684205921,2.90695,2113.0,2112.5,10.49806701]
[1617684206125,2.90695,2113.0,2112.9,5.84]
[1617684206323,2.90695,2113.0,2112.8,5.00487996]
[1617684206822,2.90695,2113.0,2112.9,5.91]
[1617684207624,2.90695,2113.0,2112.9,10.91461354]
[1617684208628,2.90695,2113.0,2112.9,5.91]
[1617684208832,4.90695,2113.0,2112.9,5.91]
[1617684209029,4.90695,2113.0,2112.7,5.00497528]
[1617684209330,4.90695,2113.0,2112.9,5.33]
[1617684209830,4.90695,2113.0,2112.7,5.00497528]
[1617684210030,4.90695,2113.0,2112.9,5.71]
[1617684210230,4.90695,2113.0,2112.8,5.9]
[1617684210832,4.90695,2113.0,2112.7,10.83526544]
[1617684211134,4.90695,2113.0,2112.9,5.89]
[1617684211635,2.90695,2113.0,2112.8,5.93]
[1617684211833,2.90695,2113.0,2112.9,5.76]
[1617684212038,63.8202,2112.8,2112.7,5.86]
[1617684212234,63.8202,2112.8,2112.6,5.00520055]
[1617684212636,63.8202,2112.8,2112.7,5.91]
[1617684215339,63.8202,2112.8,2112.6,5.94]
[1617684215738,63.8202,2112.8,2112.7,5.74]
[1617684216038,63.8202,2112.8,2112.5,5.00334033]
[1617684216039,63.8202,2112.8,2112.6,5.94]
[1617684216342,63.8202,2112.8,2112.7,5.85]
[1617684216738,63.8202,2112.8,2112.6,10.78329156]